[Event "Titled Tuesday Blitz July 4 Late 2023"]
[White "Aldokhin, Ivan"]
[Black "only_strong_moves"]
[WhiteFideId "24115720"]
[WhiteElo "2667"]
[BlackElo "2517"]
[Result "0-1"]
[Round "9"]
[TimeControl "180+2"]
[Date "2023.07.04"]
[WhiteClock "0:00:03"]
[BlackClock "0:00:21"]
[Board "40"]

1. e4 {[%clk 0:03:00]}  c5 {[%clk 0:02:59]} 2. Nf3 {[%clk 0:03:00]}  Nc6 {[%clk 0:02:59]} 3. d4 {[%clk 0:03:00]}  cxd4 {[%clk 0:02:59]} 4. Nxd4 {[%clk 0:03:01]}  Nf6 {[%clk 0:02:59]} 5. Nc3 {[%clk 0:03:01]}  e5 {[%clk 0:02:59]} 6. Ndb5 {[%clk 0:03:01]}  d6 {[%clk 0:03:00]} 7. Bg5 {[%clk 0:03:02]}  a6 {[%clk 0:03:01]} 8. Bxf6 {[%clk 0:02:58]}  gxf6 {[%clk 0:03:00]} 9. Na3 {[%clk 0:02:59]}  b5 {[%clk 0:02:59]} 10. Nd5 {[%clk 0:02:59]}  f5 {[%clk 0:02:59]} 11. g3 {[%clk 0:02:58]}  fxe4 {[%clk 0:02:36]} 12. Bg2 {[%clk 0:02:59]}  Bg7 {[%clk 0:02:37]} 13. Bxe4 {[%clk 0:02:56]}  Be6 {[%clk 0:02:37]} 14. Qh5 {[%clk 0:01:41]}  Rc8 {[%clk 0:02:30]} 15. O-O {[%clk 0:01:29]}  Ne7 {[%clk 0:02:28]} 16. Nxe7 {[%clk 0:01:19]}  Qxe7 {[%clk 0:02:28]} 17. Rad1 {[%clk 0:01:19]}  b4 {[%clk 0:02:23]} 18. Nb1 {[%clk 0:01:15]}  Rc5 {[%clk 0:02:11]} 19. c3 {[%clk 0:00:40]}  b3 {[%clk 0:01:50]} 20. axb3 {[%clk 0:00:35]}  Bxb3 {[%clk 0:01:51]} 21. Nd2 {[%clk 0:00:23]}  Bxd1 {[%clk 0:01:40]} 22. Rxd1 {[%clk 0:00:24]}  d5 {[%clk 0:01:40]} 23. Bc2 {[%clk 0:00:24]}  Rb5 {[%clk 0:01:35]} 24. Ba4 {[%clk 0:00:22]}  O-O {[%clk 0:01:33]} 25. Bxb5 {[%clk 0:00:21]}  axb5 {[%clk 0:01:34]} 26. Nf3 {[%clk 0:00:20]}  Ra8 {[%clk 0:01:32]} 27. Rxd5 {[%clk 0:00:14]}  Qb7 {[%clk 0:01:31]} 28. Rd1 {[%clk 0:00:10]}  b4 {[%clk 0:01:29]} 29. cxb4 {[%clk 0:00:09]}  e4 {[%clk 0:01:21]} 30. Ng5 {[%clk 0:00:09]}  h6 {[%clk 0:01:22]} 31. Nh3 {[%clk 0:00:09]}  Qxb4 {[%clk 0:01:19]} 32. Rd7 {[%clk 0:00:08]}  Qc4 {[%clk 0:01:14]} 33. Qd5 {[%clk 0:00:07]}  Ra1+ {[%clk 0:01:10]} 34. Qd1 {[%clk 0:00:05]}  Rxd1+ {[%clk 0:01:10]} 35. Rxd1 {[%clk 0:00:06]}  Bxb2 {[%clk 0:01:09]} 36. Nf4 {[%clk 0:00:06]}  Be5 {[%clk 0:01:08]} 37. Nd5 {[%clk 0:00:05]}  Qe2 {[%clk 0:01:04]} 38. Rf1 {[%clk 0:00:03]}  Qd3 {[%clk 0:01:01]} 39. Ne7+ {[%clk 0:00:03]}  Kf8 {[%clk 0:01:01]} 40. Nf5 {[%clk 0:00:03]}  Qd2 {[%clk 0:00:59]} 41. Kg2 {[%clk 0:00:01]}  f6 {[%clk 0:00:51]} 42. Rb1 {[%clk 0:00:02]}  Qd5 {[%clk 0:00:47]} 43. Ne3 {[%clk 0:00:02]}  Qc6 {[%clk 0:00:47]} 44. Rd1 {[%clk 0:00:02]}  Kf7 {[%clk 0:00:45]} 45. Nd5 {[%clk 0:00:02]}  Qa4 {[%clk 0:00:42]} 46. Ne3 {[%clk 0:00:02]}  Bd4 {[%clk 0:00:39]} 47. Re1 {[%clk 0:00:02]}  Kg6 {[%clk 0:00:33]} 48. Ng4 {[%clk 0:00:02]}  f5 {[%clk 0:00:32]} 49. Ne3 {[%clk 0:00:03]}  Qb3 {[%clk 0:00:29]} 50. Kf1 {[%clk 0:00:03]}  Qd3+ {[%clk 0:00:29]} 51. Kg2 {[%clk 0:00:03]}  Qd2 {[%clk 0:00:27]} 52. Rd1 {[%clk 0:00:03]}  Bxe3 {[%clk 0:00:25]} 53. Rxd2 {[%clk 0:00:04]}  Bxd2 {[%clk 0:00:26]} 54. Kf1 {[%clk 0:00:03]}  Kg5 {[%clk 0:00:25]} 55. Ke2 {[%clk 0:00:04]}  Bb4 {[%clk 0:00:24]} 56. h3 {[%clk 0:00:04]}  h5 {[%clk 0:00:24]} 57. f3 {[%clk 0:00:04]}  Bc5 {[%clk 0:00:23]} 58. h4+ {[%clk 0:00:01]}  Kf6 {[%clk 0:00:22]} 59. fxe4 {[%clk 0:00:01]}  fxe4 {[%clk 0:00:23]} 60. Kf1 {[%clk 0:00:01]}  Kf5 {[%clk 0:00:23]} 61. Kg2 {[%clk 0:00:01]}  Kg4 {[%clk 0:00:23]} 62. Kh1 {[%clk 0:00:02]}  e3 {[%clk 0:00:23]} 63. Kg2 {[%clk 0:00:02]}  e2 {[%clk 0:00:23]} 64. Kh2 {[%clk 0:00:02]}  e1=Q {[%clk 0:00:22]} 65. Kg2 {[%clk 0:00:03]}  Qg1# {[%clk 0:00:21]} 0-1


[Site "https://www.chess.com"]

[Event "Titled Tuesday Blitz July 4 Late 2023"]
[White "Fisher_TheGalactic"]
[Black "Zhang, Derek"]
[BlackFideId "2087871"]
[WhiteElo "2663"]
[BlackElo "2507"]
[Result "1-0"]
[Round "9"]
[TimeControl "180+2"]
[Date "2023.07.04"]
[WhiteClock "0:00:51"]
[BlackClock "0:00:00"]
[Board "42"]

1. Nf3 {[%clk 0:02:57]}  d6 {[%clk 0:02:58]} 2. g3 {[%clk 0:02:58]}  e5 {[%clk 0:02:58]} 3. e4 {[%clk 0:02:58]}  f5 {[%clk 0:02:59]} 4. exf5 {[%clk 0:02:56]}  Bxf5 {[%clk 0:02:59]} 5. Bg2 {[%clk 0:02:56]}  c6 {[%clk 0:02:59]} 6. O-O {[%clk 0:02:56]}  Be7 {[%clk 0:02:59]} 7. d4 {[%clk 0:02:57]}  e4 {[%clk 0:02:52]} 8. Nfd2 {[%clk 0:02:56]}  d5 {[%clk 0:02:52]} 9. f3 {[%clk 0:02:57]}  exf3 {[%clk 0:02:43]} 10. Nxf3 {[%clk 0:02:55]}  Nd7 {[%clk 0:02:38]} 11. Ne5 {[%clk 0:02:44]}  Nxe5 {[%clk 0:02:35]} 12. Rxf5 {[%clk 0:02:42]}  Ng6 {[%clk 0:02:34]} 13. c3 {[%clk 0:02:35]}  Nf6 {[%clk 0:02:34]} 14. Bg5 {[%clk 0:02:33]}  O-O {[%clk 0:02:34]} 15. Nd2 {[%clk 0:02:31]}  h6 {[%clk 0:01:57]} 16. Bxf6 {[%clk 0:02:27]}  Rxf6 {[%clk 0:01:53]} 17. Qc2 {[%clk 0:02:27]}  Qf8 {[%clk 0:01:35]} 18. Raf1 {[%clk 0:02:18]}  Rxf5 {[%clk 0:01:32]} 19. Rxf5 {[%clk 0:02:17]}  Bf6 {[%clk 0:01:32]} 20. Rf1 {[%clk 0:02:08]}  Qe8 {[%clk 0:01:24]} 21. Nf3 {[%clk 0:02:05]}  Nf8 {[%clk 0:01:14]} 22. Bh3 {[%clk 0:01:59]}  Qe3+ {[%clk 0:01:02]} 23. Kg2 {[%clk 0:01:55]}  Qe8 {[%clk 0:00:38]} 24. Re1 {[%clk 0:01:51]}  Qg6 {[%clk 0:00:37]} 25. Qb3 {[%clk 0:01:49]}  Qf7 {[%clk 0:00:36]} 26. Qc2 {[%clk 0:01:40]}  Re8 {[%clk 0:00:35]} 27. Rxe8 {[%clk 0:01:34]}  Qxe8 {[%clk 0:00:36]} 28. Bf5 {[%clk 0:01:32]}  Qe3 {[%clk 0:00:34]} 29. Bd3 {[%clk 0:01:29]}  Ne6 {[%clk 0:00:31]} 30. Qe2 {[%clk 0:01:28]}  Qxe2+ {[%clk 0:00:30]} 31. Bxe2 {[%clk 0:01:29]}  Kf7 {[%clk 0:00:28]} 32. Bd3 {[%clk 0:01:28]}  Ke7 {[%clk 0:00:21]} 33. Nd2 {[%clk 0:01:27]}  Bg5 {[%clk 0:00:21]} 34. Nb3 {[%clk 0:01:23]}  b6 {[%clk 0:00:20]} 35. h4 {[%clk 0:01:22]}  Bf6 {[%clk 0:00:20]} 36. Kf3 {[%clk 0:01:22]}  Kd6 {[%clk 0:00:20]} 37. Kg4 {[%clk 0:01:23]}  c5 {[%clk 0:00:20]} 38. dxc5+ {[%clk 0:01:21]}  Nxc5 {[%clk 0:00:18]} 39. Nc1 {[%clk 0:01:22]}  a6 {[%clk 0:00:13]} 40. Kf5 {[%clk 0:01:20]}  b5 {[%clk 0:00:13]} 41. Bc2 {[%clk 0:01:17]}  a5 {[%clk 0:00:12]} 42. Ne2 {[%clk 0:01:17]}  b4 {[%clk 0:00:13]} 43. cxb4 {[%clk 0:01:17]}  axb4 {[%clk 0:00:13]} 44. b3 {[%clk 0:01:18]}  d4 {[%clk 0:00:12]} 45. Nf4 {[%clk 0:01:17]}  Be5 {[%clk 0:00:12]} 46. Kg6 {[%clk 0:01:00]}  Bxf4 {[%clk 0:00:06]} 47. gxf4 {[%clk 0:01:01]}  d3 {[%clk 0:00:07]} 48. Bd1 {[%clk 0:01:01]}  Ke6 {[%clk 0:00:06]} 49. Bg4+ {[%clk 0:00:59]}  Ke7 {[%clk 0:00:07]} 50. Kxg7 {[%clk 0:00:59]}  Ne4 {[%clk 0:00:07]} 51. f5 {[%clk 0:00:58]}  d2 {[%clk 0:00:06]} 52. Bf3 {[%clk 0:00:55]}  Nf6 {[%clk 0:00:01]} 53. Kxh6 {[%clk 0:00:55]}  Kd6 {[%clk 0:00:01]} 54. Kg6 {[%clk 0:00:55]}  Ke5 {[%clk 0:00:02]} 55. h5 {[%clk 0:00:55]}  Ng8 {[%clk 0:00:00]} 56. Kg7 {[%clk 0:00:51]} 1-0


[Site "https://www.chess.com"]

[Event "Titled Tuesday Blitz July 4 Late 2023"]
[White "Fantastic_Power"]
[Black "Toniutti, Ezio"]
[BlackFideId "113034"]
[WhiteElo "2661"]
[BlackElo "2506"]
[Result "0-1"]
[Round "9"]
[TimeControl "180+2"]
[Date "2023.07.04"]
[WhiteClock "0:00:03"]
[BlackClock "0:00:16"]
[Board "43"]

1. e4 {[%clk 0:02:40]}  e5 {[%clk 0:02:59]} 2. Nf3 {[%clk 0:02:39]}  Nc6 {[%clk 0:02:59]} 3. Bb5 {[%clk 0:02:40]}  a6 {[%clk 0:02:59]} 4. Ba4 {[%clk 0:02:40]}  d6 {[%clk 0:02:59]} 5. O-O {[%clk 0:02:39]}  Bd7 {[%clk 0:02:59]} 6. c3 {[%clk 0:02:39]}  Nge7 {[%clk 0:02:59]} 7. d4 {[%clk 0:02:39]}  Ng6 {[%clk 0:02:59]} 8. Re1 {[%clk 0:02:37]}  Be7 {[%clk 0:02:59]} 9. Nbd2 {[%clk 0:02:36]}  O-O {[%clk 0:02:59]} 10. Nf1 {[%clk 0:02:37]}  b5 {[%clk 0:02:58]} 11. Bb3 {[%clk 0:02:32]}  Na5 {[%clk 0:02:57]} 12. Bc2 {[%clk 0:02:32]}  c5 {[%clk 0:02:57]} 13. Ng3 {[%clk 0:02:29]}  Nc4 {[%clk 0:02:52]} 14. b3 {[%clk 0:02:28]}  Nb6 {[%clk 0:02:53]} 15. d5 {[%clk 0:02:18]}  c4 {[%clk 0:02:49]} 16. Be3 {[%clk 0:02:09]}  Qc7 {[%clk 0:02:45]} 17. b4 {[%clk 0:02:07]}  a5 {[%clk 0:02:44]} 18. a3 {[%clk 0:02:07]}  axb4 {[%clk 0:02:35]} 19. axb4 {[%clk 0:02:08]}  Qb7 {[%clk 0:02:30]} 20. Qd2 {[%clk 0:01:48]}  Rfb8 {[%clk 0:02:25]} 21. h3 {[%clk 0:01:32]}  Bf8 {[%clk 0:02:23]} 22. Nh2 {[%clk 0:01:24]}  Nc8 {[%clk 0:02:12]} 23. Ng4 {[%clk 0:01:18]}  Nce7 {[%clk 0:02:10]} 24. f3 {[%clk 0:01:12]}  Rxa1 {[%clk 0:02:09]} 25. Rxa1 {[%clk 0:01:11]}  Ra8 {[%clk 0:02:10]} 26. Qe1 {[%clk 0:01:10]}  Nf4 {[%clk 0:02:05]} 27. Nf2 {[%clk 0:01:03]}  Neg6 {[%clk 0:02:04]} 28. Qb1 {[%clk 0:00:36]}  Ra6 {[%clk 0:02:01]} 29. Ra5 {[%clk 0:00:34]}  Rxa5 {[%clk 0:01:52]} 30. bxa5 {[%clk 0:00:35]}  Qa6 {[%clk 0:01:49]} 31. Qb4 {[%clk 0:00:33]}  Be7 {[%clk 0:01:47]} 32. Bb6 {[%clk 0:00:23]}  h5 {[%clk 0:01:44]} 33. Nf1 {[%clk 0:00:10]}  Nh4 {[%clk 0:01:40]} 34. Ne3 {[%clk 0:00:10]}  Qc8 {[%clk 0:01:26]} 35. Kh2 {[%clk 0:00:09]}  Bg5 {[%clk 0:01:13]} 36. Bd1 {[%clk 0:00:08]}  Nxh3 {[%clk 0:01:12]} 37. Nxh3 {[%clk 0:00:07]}  Bxh3 {[%clk 0:00:53]} 38. gxh3 {[%clk 0:00:05]}  Bf4+ {[%clk 0:00:53]} 39. Kg1 {[%clk 0:00:04]}  Qxh3 {[%clk 0:00:53]} 40. Qb2 {[%clk 0:00:05]}  Qg3+ {[%clk 0:00:43]} 41. Kf1 {[%clk 0:00:05]}  Qh3+ {[%clk 0:00:26]} 42. Kg1 {[%clk 0:00:05]}  b4 {[%clk 0:00:19]} 43. a6 {[%clk 0:00:03]}  bxc3 {[%clk 0:00:19]} 44. Qf2 {[%clk 0:00:04]}  c2 {[%clk 0:00:15]} 45. Bxc2 {[%clk 0:00:04]}  Nxf3+ {[%clk 0:00:15]} 46. Qxf3 {[%clk 0:00:04]}  Qxf3 {[%clk 0:00:14]} 47. a7 {[%clk 0:00:04]}  Bxe3+ {[%clk 0:00:15]} 48. Bxe3 {[%clk 0:00:04]}  Qxe3+ {[%clk 0:00:15]} 49. Kg2 {[%clk 0:00:03]}  Qxa7 {[%clk 0:00:16]} 0-1


[Site "https://www.chess.com"]

[Event "Titled Tuesday Blitz July 4 Late 2023"]
[White "MKlose11"]
[Black "Remolar Gallen, Jose"]
[BlackFideId "2215187"]
[WhiteElo "2656"]
[BlackElo "2484"]
[Result "1-0"]
[Round "9"]
[TimeControl "180+2"]
[Date "2023.07.04"]
[WhiteClock "0:01:53"]
[BlackClock "0:01:20"]
[Board "44"]

1. e4 {[%clk 0:03:00]}  c5 {[%clk 0:02:59]} 2. Nc3 {[%clk 0:03:00]}  d6 {[%clk 0:02:59]} 3. g3 {[%clk 0:03:00]}  g6 {[%clk 0:02:57]} 4. d3 {[%clk 0:03:01]}  Bg7 {[%clk 0:02:58]} 5. Be3 {[%clk 0:02:59]}  Nc6 {[%clk 0:02:58]} 6. Bg2 {[%clk 0:02:59]}  e6 {[%clk 0:02:58]} 7. Qd2 {[%clk 0:02:59]}  Nd4 {[%clk 0:02:57]} 8. Nd1 {[%clk 0:02:59]}  h6 {[%clk 0:02:51]} 9. c3 {[%clk 0:02:59]}  Nc6 {[%clk 0:02:51]} 10. Ne2 {[%clk 0:03:00]}  Nge7 {[%clk 0:02:51]} 11. O-O {[%clk 0:03:00]}  Rb8 {[%clk 0:02:52]} 12. d4 {[%clk 0:02:58]}  cxd4 {[%clk 0:02:50]} 13. Nxd4 {[%clk 0:02:59]}  Bd7 {[%clk 0:02:42]} 14. Nxc6 {[%clk 0:02:53]}  Bxc6 {[%clk 0:02:38]} 15. Bxa7 {[%clk 0:02:53]}  Ra8 {[%clk 0:02:36]} 16. Bd4 {[%clk 0:02:52]}  e5 {[%clk 0:02:18]} 17. Be3 {[%clk 0:02:52]}  Qa5 {[%clk 0:02:13]} 18. Qxd6 {[%clk 0:02:38]}  Bb5 {[%clk 0:02:00]} 19. Re1 {[%clk 0:02:35]}  Bc4 {[%clk 0:01:56]} 20. b3 {[%clk 0:02:17]}  Bxb3 {[%clk 0:01:50]} 21. axb3 {[%clk 0:02:01]}  Qxa1 {[%clk 0:01:50]} 22. Bf1 {[%clk 0:02:01]}  Nc6 {[%clk 0:01:35]} 23. Bb5 {[%clk 0:01:55]}  Rc8 {[%clk 0:01:31]} 24. Bc5 {[%clk 0:01:55]}  Bf8 {[%clk 0:01:27]} 25. Qxe5+ {[%clk 0:01:55]}  Kd8 {[%clk 0:01:20]} 26. Qxh8 {[%clk 0:01:53]} 1-0


[Site "https://www.chess.com"]

[Event "Titled Tuesday Blitz July 4 Late 2023"]
[White "Mindhunter08"]
[Black "Sargsyan, Anna M."]
[BlackFideId "13308130"]
[WhiteElo "2424"]
[BlackElo "2593"]
[Result "1-0"]
[Round "9"]
[TimeControl "180+2"]
[Date "2023.07.04"]
[WhiteClock "0:00:08"]
[BlackClock "0:00:00"]
[Board "47"]

1. e4 {[%clk 0:03:00]}  c6 {[%clk 0:02:58]} 2. Nf3 {[%clk 0:03:01]}  d5 {[%clk 0:02:59]} 3. Nc3 {[%clk 0:03:01]}  Bg4 {[%clk 0:02:59]} 4. h3 {[%clk 0:03:01]}  Bxf3 {[%clk 0:02:59]} 5. Qxf3 {[%clk 0:03:02]}  Nf6 {[%clk 0:02:59]} 6. e5 {[%clk 0:02:57]}  Nfd7 {[%clk 0:02:59]} 7. d4 {[%clk 0:02:57]}  e6 {[%clk 0:02:59]} 8. Ne2 {[%clk 0:02:58]}  c5 {[%clk 0:03:00]} 9. c3 {[%clk 0:02:58]}  Nc6 {[%clk 0:03:00]} 10. Be3 {[%clk 0:02:59]}  Qb6 {[%clk 0:03:00]} 11. O-O-O {[%clk 0:02:32]}  cxd4 {[%clk 0:03:00]} 12. cxd4 {[%clk 0:02:32]}  Qa5 {[%clk 0:02:32]} 13. Kb1 {[%clk 0:02:29]}  Nb4 {[%clk 0:02:30]} 14. a3 {[%clk 0:02:21]}  Nc6 {[%clk 0:02:24]} 15. Bd2 {[%clk 0:02:16]}  Qb6 {[%clk 0:02:23]} 16. Qd3 {[%clk 0:02:13]}  Be7 {[%clk 0:02:21]} 17. f4 {[%clk 0:02:07]}  O-O {[%clk 0:02:18]} 18. g4 {[%clk 0:02:07]}  f5 {[%clk 0:02:17]} 19. gxf5 {[%clk 0:02:03]}  Rxf5 {[%clk 0:02:18]} 20. Bg2 {[%clk 0:01:59]}  Na5 {[%clk 0:02:12]} 21. Bxd5 {[%clk 0:01:55]}  exd5 {[%clk 0:02:05]} 22. Qxf5 {[%clk 0:01:55]}  Nc4 {[%clk 0:02:00]} 23. Bc3 {[%clk 0:01:48]}  Nf8 {[%clk 0:01:31]} 24. Ka1 {[%clk 0:01:17]}  Ne3 {[%clk 0:00:59]} 25. Qd3 {[%clk 0:01:14]}  Nxd1 {[%clk 0:00:58]} 26. Rxd1 {[%clk 0:01:14]}  Rc8 {[%clk 0:00:51]} 27. f5 {[%clk 0:01:00]}  Qb3 {[%clk 0:00:49]} 28. Nc1 {[%clk 0:01:00]}  Qa4 {[%clk 0:00:48]} 29. Rg1 {[%clk 0:00:36]}  Rc7 {[%clk 0:00:18]} 30. f6 {[%clk 0:00:34]}  Bd8 {[%clk 0:00:19]} 31. fxg7 {[%clk 0:00:26]}  Rxg7 {[%clk 0:00:20]} 32. Rxg7+ {[%clk 0:00:25]}  Kxg7 {[%clk 0:00:21]} 33. Qg3+ {[%clk 0:00:24]}  Ng6 {[%clk 0:00:21]} 34. Nd3 {[%clk 0:00:23]}  Qd1+ {[%clk 0:00:20]} 35. Ka2 {[%clk 0:00:23]}  Bh4 {[%clk 0:00:19]} 36. Qe3 {[%clk 0:00:21]}  b6 {[%clk 0:00:13]} 37. Nb4 {[%clk 0:00:17]}  Qh1 {[%clk 0:00:13]} 38. e6 {[%clk 0:00:15]}  a5 {[%clk 0:00:12]} 39. Nc6 {[%clk 0:00:15]}  a4 {[%clk 0:00:11]} 40. e7 {[%clk 0:00:15]}  Qd1 {[%clk 0:00:12]} 41. e8=Q {[%clk 0:00:10]}  Qb3+ {[%clk 0:00:12]} 42. Kb1 {[%clk 0:00:11]}  Qd1+ {[%clk 0:00:13]} 43. Qc1 {[%clk 0:00:11]}  Qd3+ {[%clk 0:00:13]} 44. Ka1 {[%clk 0:00:12]}  Bf6 {[%clk 0:00:12]} 45. Qd7+ {[%clk 0:00:12]}  Kg8 {[%clk 0:00:11]} 46. Qe6+ {[%clk 0:00:12]}  Kg7 {[%clk 0:00:11]} 47. Qxd5 {[%clk 0:00:12]}  Nh4 {[%clk 0:00:10]} 48. Qd7+ {[%clk 0:00:10]}  Kg6 {[%clk 0:00:09]} 49. Qg4+ {[%clk 0:00:10]}  Kf7 {[%clk 0:00:08]} 50. Qd7+ {[%clk 0:00:09]}  Kg6 {[%clk 0:00:08]} 51. Qg1+ {[%clk 0:00:10]}  Kh6 {[%clk 0:00:00]} 52. Qdg4 {[%clk 0:00:08]} 1-0


[Site "https://www.chess.com"]

[Event "Titled Tuesday Blitz July 4 Late 2023"]
[White "Sadovsky, Artem"]
[Black "Erenberg, Ariel"]
[WhiteFideId "4155840"]
[BlackFideId "2811634"]
[WhiteElo "2541"]
[BlackElo "2704"]
[Result "0-1"]
[Round "9"]
[TimeControl "180+2"]
[Date "2023.07.04"]
[WhiteClock "0:00:03"]
[BlackClock "0:00:54"]
[Board "48"]

1. e4 {[%clk 0:02:53]}  e6 {[%clk 0:02:57]} 2. Nf3 {[%clk 0:02:52]}  d5 {[%clk 0:02:57]} 3. Nc3 {[%clk 0:02:52]}  Nf6 {[%clk 0:02:52]} 4. e5 {[%clk 0:02:42]}  Nfd7 {[%clk 0:02:51]} 5. d4 {[%clk 0:02:43]}  c5 {[%clk 0:02:51]} 6. dxc5 {[%clk 0:02:40]}  Bxc5 {[%clk 0:02:47]} 7. Bd3 {[%clk 0:02:41]}  Nc6 {[%clk 0:02:47]} 8. Bf4 {[%clk 0:02:40]}  Qb6 {[%clk 0:02:43]} 9. O-O {[%clk 0:02:40]}  Qxb2 {[%clk 0:02:43]} 10. Nb5 {[%clk 0:02:32]}  O-O {[%clk 0:02:42]} 11. Rb1 {[%clk 0:02:00]}  Qxa2 {[%clk 0:02:41]} 12. Bxh7+ {[%clk 0:01:44]}  Kxh7 {[%clk 0:02:37]} 13. Ng5+ {[%clk 0:01:44]}  Kg8 {[%clk 0:02:37]} 14. Qh5 {[%clk 0:01:44]}  Qxc2 {[%clk 0:02:37]} 15. Nc7 {[%clk 0:01:30]}  Rb8 {[%clk 0:02:28]} 16. Rb3 {[%clk 0:01:20]}  Qg6 {[%clk 0:02:22]} 17. Qh4 {[%clk 0:01:12]}  Qh6 {[%clk 0:02:17]} 18. Qg3 {[%clk 0:01:03]}  Nd4 {[%clk 0:02:13]} 19. Qg4 {[%clk 0:00:40]}  Nxb3 {[%clk 0:01:56]} 20. Nxf7 {[%clk 0:00:41]}  Qxf4 {[%clk 0:01:43]} 21. Qxf4 {[%clk 0:00:42]}  Rxf7 {[%clk 0:01:43]} 22. Qa4 {[%clk 0:00:25]}  Nxe5 {[%clk 0:01:40]} 23. Qxb3 {[%clk 0:00:14]}  Rxc7 {[%clk 0:01:39]} 24. Qg3 {[%clk 0:00:05]}  Bd6 {[%clk 0:01:38]} 25. Qe3 {[%clk 0:00:04]}  b6 {[%clk 0:01:32]} 26. h3 {[%clk 0:00:04]}  Rf7 {[%clk 0:01:29]} 27. Rd1 {[%clk 0:00:03]}  Bd7 {[%clk 0:01:24]} 28. Kh1 {[%clk 0:00:02]}  Rbf8 {[%clk 0:01:21]} 29. f3 {[%clk 0:00:03]}  Nc4 {[%clk 0:01:06]} 30. Qg5 {[%clk 0:00:03]}  a5 {[%clk 0:01:05]} 31. Rd4 {[%clk 0:00:02]}  Bf4 {[%clk 0:01:04]} 32. Qg6 {[%clk 0:00:01]}  a4 {[%clk 0:01:02]} 33. Rd3 {[%clk 0:00:01]}  a3 {[%clk 0:01:01]} 34. Rxa3 {[%clk 0:00:01]}  Nxa3 {[%clk 0:01:00]} 35. Qd3 {[%clk 0:00:02]}  Nc4 {[%clk 0:00:58]} 36. Qd4 {[%clk 0:00:02]}  b5 {[%clk 0:00:57]} 37. Qf2 {[%clk 0:00:02]}  b4 {[%clk 0:00:57]} 38. Qc2 {[%clk 0:00:01]}  Bb5 {[%clk 0:00:54]} 39. Qb3 {[%clk 0:00:02]}  Bd6 {[%clk 0:00:53]} 40. h4 {[%clk 0:00:01]}  Ra7 {[%clk 0:00:52]} 41. Qb1 {[%clk 0:00:01]}  Rfa8 {[%clk 0:00:51]} 42. Qg1 {[%clk 0:00:02]}  Ra1 {[%clk 0:00:52]} 43. h5 {[%clk 0:00:02]}  Rxg1+ {[%clk 0:00:52]} 44. Kxg1 {[%clk 0:00:03]}  Bg3 {[%clk 0:00:52]} 45. Kf1 {[%clk 0:00:03]}  Ra2 {[%clk 0:00:52]} 46. Kg1 {[%clk 0:00:03]}  Ne3 {[%clk 0:00:53]} 47. Kh1 {[%clk 0:00:03]}  Ra1# {[%clk 0:00:54]} 0-1


[Site "https://www.chess.com"]

[Event "Titled Tuesday Blitz July 4 Late 2023"]
[White "marik_spb"]
[Black "Katz, Alexander"]
[BlackFideId "2039796"]
[WhiteElo "2508"]
[BlackElo "2652"]
[Result "0-1"]
[Round "9"]
[TimeControl "180+2"]
[Date "2023.07.04"]
[WhiteClock "0:00:00"]
[BlackClock "0:00:16"]
[Board "51"]

1. d4 {[%clk 0:02:55]}  d6 {[%clk 0:02:58]} 2. c4 {[%clk 0:02:55]}  e5 {[%clk 0:02:59]} 3. dxe5 {[%clk 0:02:54]}  dxe5 {[%clk 0:02:59]} 4. Qxd8+ {[%clk 0:02:55]}  Kxd8 {[%clk 0:02:59]} 5. Nc3 {[%clk 0:02:55]}  c6 {[%clk 0:03:00]} 6. e4 {[%clk 0:02:49]}  Be6 {[%clk 0:02:59]} 7. a3 {[%clk 0:02:47]}  a5 {[%clk 0:02:58]} 8. Nf3 {[%clk 0:02:41]}  Nd7 {[%clk 0:02:58]} 9. Ng5 {[%clk 0:02:40]}  Bc5 {[%clk 0:02:34]} 10. Nxe6+ {[%clk 0:02:38]}  fxe6 {[%clk 0:02:35]} 11. Bd3 {[%clk 0:01:47]}  Kc7 {[%clk 0:02:34]} 12. Ke2 {[%clk 0:01:46]}  Bd4 {[%clk 0:02:33]} 13. Be3 {[%clk 0:01:40]}  Nc5 {[%clk 0:02:31]} 14. Bc2 {[%clk 0:01:24]}  Nf6 {[%clk 0:02:30]} 15. f3 {[%clk 0:01:23]}  Rhd8 {[%clk 0:02:13]} 16. Rad1 {[%clk 0:01:20]}  Rd7 {[%clk 0:02:05]} 17. Rd2 {[%clk 0:01:11]}  Nh5 {[%clk 0:01:31]} 18. Rhd1 {[%clk 0:00:53]}  Nf4+ {[%clk 0:01:11]} 19. Bxf4 {[%clk 0:00:49]}  exf4 {[%clk 0:01:11]} 20. Rxd4 {[%clk 0:00:48]}  Rxd4 {[%clk 0:01:00]} 21. Rxd4 {[%clk 0:00:48]}  e5 {[%clk 0:01:01]} 22. Rd1 {[%clk 0:00:47]}  Ne6 {[%clk 0:01:02]} 23. Rd2 {[%clk 0:00:37]}  Nd4+ {[%clk 0:00:59]} 24. Kf2 {[%clk 0:00:36]}  g5 {[%clk 0:00:58]} 25. Ne2 {[%clk 0:00:35]}  Ne6 {[%clk 0:00:57]} 26. g3 {[%clk 0:00:24]}  h5 {[%clk 0:00:53]} 27. gxf4 {[%clk 0:00:24]}  gxf4 {[%clk 0:00:54]} 28. Rd1 {[%clk 0:00:24]}  h4 {[%clk 0:00:46]} 29. Rg1 {[%clk 0:00:24]}  Rd8 {[%clk 0:00:46]} 30. Ke1 {[%clk 0:00:19]}  Kb6 {[%clk 0:00:37]} 31. Rg6 {[%clk 0:00:18]}  Nc5 {[%clk 0:00:29]} 32. b4 {[%clk 0:00:17]}  axb4 {[%clk 0:00:25]} 33. axb4 {[%clk 0:00:17]}  Na6 {[%clk 0:00:26]} 34. b5 {[%clk 0:00:13]}  Nb4 {[%clk 0:00:26]} 35. Bb1 {[%clk 0:00:08]}  Ra8 {[%clk 0:00:22]} 36. Nc3 {[%clk 0:00:07]}  Kc5 {[%clk 0:00:19]} 37. bxc6 {[%clk 0:00:06]}  bxc6 {[%clk 0:00:19]} 38. Kd2 {[%clk 0:00:00]}  Rd8+ {[%clk 0:00:16]} 0-1


[Site "https://www.chess.com"]

[Event "Titled Tuesday Blitz July 4 Late 2023"]
[White "Reprintsev, Alexander"]
[Black "Di Berardino, Diego Rafael"]
[WhiteFideId "14100541"]
[BlackFideId "2105446"]
[WhiteElo "2497"]
[BlackElo "2620"]
[Result "0-1"]
[Round "9"]
[TimeControl "180+2"]
[Date "2023.07.04"]
[WhiteClock "0:00:10"]
[BlackClock "0:00:24"]
[Board "52"]

1. e4 {[%clk 0:02:49]}  e5 {[%clk 0:02:55]} 2. Nf3 {[%clk 0:02:48]}  Nc6 {[%clk 0:02:52]} 3. Bc4 {[%clk 0:02:48]}  Bc5 {[%clk 0:02:50]} 4. b4 {[%clk 0:02:47]}  Bxb4 {[%clk 0:02:48]} 5. c3 {[%clk 0:02:47]}  Ba5 {[%clk 0:02:48]} 6. d4 {[%clk 0:02:44]}  d6 {[%clk 0:02:27]} 7. Qb3 {[%clk 0:02:43]}  Qd7 {[%clk 0:02:27]} 8. O-O {[%clk 0:02:43]}  Bb6 {[%clk 0:02:22]} 9. Nbd2 {[%clk 0:02:42]}  Nf6 {[%clk 0:02:14]} 10. dxe5 {[%clk 0:02:26]}  Ng4 {[%clk 0:02:12]} 11. exd6 {[%clk 0:02:04]}  O-O {[%clk 0:01:49]} 12. h3 {[%clk 0:01:58]}  Nge5 {[%clk 0:01:46]} 13. Nxe5 {[%clk 0:01:36]}  Nxe5 {[%clk 0:01:47]} 14. Bb5 {[%clk 0:01:36]}  c6 {[%clk 0:01:43]} 15. Be2 {[%clk 0:01:33]}  Qxd6 {[%clk 0:01:43]} 16. Ba3 {[%clk 0:01:33]}  Qxd2 {[%clk 0:01:38]} 17. Bxf8 {[%clk 0:01:31]}  Kxf8 {[%clk 0:01:30]} 18. Rfe1 {[%clk 0:01:04]}  Be6 {[%clk 0:01:28]} 19. Qa3+ {[%clk 0:01:03]}  Kg8 {[%clk 0:01:27]} 20. Rad1 {[%clk 0:01:03]}  Qf4 {[%clk 0:01:26]} 21. Rf1 {[%clk 0:00:59]}  Bxh3 {[%clk 0:01:06]} 22. c4 {[%clk 0:00:53]}  Be6 {[%clk 0:00:58]} 23. c5 {[%clk 0:00:53]}  Bc7 {[%clk 0:00:58]} 24. f3 {[%clk 0:00:20]}  g6 {[%clk 0:00:43]} 25. Qb2 {[%clk 0:00:16]}  b5 {[%clk 0:00:32]} 26. Qc1 {[%clk 0:00:15]}  Qg3 {[%clk 0:00:26]} 27. a4 {[%clk 0:00:14]}  Nc4 {[%clk 0:00:24]} 28. axb5 {[%clk 0:00:10]}  Qh2+ {[%clk 0:00:23]} 29. Kf2 {[%clk 0:00:10]}  Bg3# {[%clk 0:00:24]} 0-1


[Site "https://www.chess.com"]